Cogmind - Beta 16 @@@ ROGUE MODE // 2025.10.26 @ 02:18:28 Player: FAQ Result: Destroyed by G-47 Trooper with Particle Gun Performance ------------- Evolutions (3) 1500 Regions Visited (5) 1000 Robots Destroyed (47) 235 Value Destroyed (1034) 1034 Prototype IDs (4) 80 Alien Tech Used (0) 0 Bonus (25) 25 TOTAL SCORE: 3874 Bonus ------- Follower Combat Kills 25 Cogmind --------- Core Integrity 0/700 Matter 216/300 Energy 266/300 System Corruption 5% Temperature Cool (9) Movement Core (200) Ox3 Location -7/Factory Parts ------- > --- POWER (2) -------- Nuclear Core Light Nuclear Core > --- PROPULSION (6) --- (None) > --- UTILITY (3) ------ (None) > --- WEAPON (2) ------- (None) > --- INVENTORY (5) ---- Structural Scanner Improved Signal Interpreter Insulated Plating Peak State ------------ > --- POWER ------------ Deuterium Engine Light Nuclear Core > --- PROPULSION ------- Flight Unit Flight Unit VTOL Module > --- UTILITY ---------- Advanced Weight Redist. System Improved Sensor Array Core Analyzer > --- WEAPON ----------- Advanced Assault Cannon > --- INVENTORY -------- Structural Scanner Improved Signal Interpreter Small Laser Advanced Assault Cannon [Rating: 24] Favorites ----------- Power Light Ion Engine Engine Light Ion Engine Power Core Micro Nuclear Core Propulsion Flight Unit Leg Aluminum Leg Wheel Wheel Flight Unit Flight Unit Utility Small Storage Unit Device Advanced Weight Redist. System Storage Small Storage Unit Processor Core Analyzer Protection Insulated Plating Weapon Light Assault Rifle Energy Gun EM Pulse Gun Energy Cannon Light EM Pulse Cannon Ballistic Gun Light Assault Rifle Ballistic Cannon Advanced Assault Cannon Impact Weapon Hammer Slashing Weapon Mining Claw Build | -11 -10 -9 -9 -8 -7 ------- Run | Yrd Mat Mat Min Mat Fac Slots Evolved 6 | . . 2 . 2 2 Power 1 | . . . . . 1 Propulsion 4 | . . 2 . 1 1 Utility 1 | . . . . 1 . Weapon . | . . . . . . Parts Attached 51 | 7 8 15 1 2 18 Power 11 | 1 1 2 1 1 5 Engine 7 | 1 1 2 1 1 1 Core 4 | . . . . . 4 Reactor . | . . . . . . Propulsion 22 | 2 6 8 . . 6 Treads . | . . . . . . Leg 6 | . 4 . . . 2 Wheel 4 | 2 . . . . 2 Hover . | . . . . . . Flight 12 | . 2 8 . . 2 Utility 7 | 1 . 1 . 1 4 Device 4 | . . 1 . 1 2 Storage 1 | 1 . . . . . Processor 1 | . . . . . 1 Hackware . | . . . . . . Protection 1 | . . . . . 1 Artifact . | . . . . . . Weapon 11 | 3 1 4 . . 3 Energy Gun 2 | 2 . . . . . Energy Cannon 1 | . . 1 . . . Ballistic Gun 4 | 1 . 3 . . . Ballistic Cannon 2 | . . . . . 2 Launcher . | . . . . . . Special Weapon . | . . . . . . Impact Weapon 1 | . 1 . . . . Slashing Weapon 1 | . . . . . 1 Piercing Weapon . | . . . . . . Special Melee Weapon . | . . . . . . Unidentified Prototypes 2 | . . . 1 . 1 Parts Lost 27 | . . 3 1 3 20 Power 6 | . . 1 . 1 4 Propulsion 10 | . . 2 . . 8 Utility 5 | . . . 1 . 4 Weapon 6 | . . . . 2 4 Highest Loss Streak 10 | . . 2 1 3 10 To Critical Strikes 1 | . . . . . 1 Average Backups 5 | 1 6 7 8 7 4 Power . | . 1 1 1 . . Propulsion 2 | . 3 3 4 3 . Utility 1 | . . . . . 2 Weapon 2 | . 1 2 3 3 1 Tool/Special . | . . . . . . Unused Backups 3 | . 1 . . . 2 Power . | . . . . . . Propulsion 1 | . 1 . . . . Utility 1 | . . . . . 1 Weapon 1 | . . . . . 1 Tool/Special . | . . . . . . Average Slot Usage (%) 74 | . 83 83 100 78 59 Engine 9 | . 14 11 11 8 6 Core 1 | . . . . . 4 Leg 6 | . 21 . . . 4 Wheel 2 | . 4 . . . 2 Flight 17 | . . 38 44 38 9 Device 6 | . . . 11 9 9 Storage 7 | . 14 11 11 9 1 Processor 2 | . . . . . 5 Energy Gun 1 | . 7 . . . . Energy Cannon 1 | . . 1 11 7 . Ballistic Gun 5 | . 8 15 11 6 . Ballistic Cannon 2 | . . . . . 6 Impact Weapon 3 | . 10 5 . . . Slashing Weapon 1 | . . . . . 3 Peak Build Rating 24 | 6 6 10 10 14 24 Average Rating 13 | 4 5 7 9 11 19 On Entrance 7 | . 6 6 10 10 12 Avg Prop Armor Cover (%) 5 | . . . . . 5 Naked Turns . | . . . . . . Heaviest Build 26 | 11 12 14 14 19 26 Greatest Support 32 | 32 32 16 16 29 29 Greatest Overweight (x) 2 | . 1 . . . 2 Average Overweight (x) . | . . . . . . Largest Inventory Capacity 8 | 8 8 8 8 8 8 Average Capacity 6 | 7 8 8 8 8 5 Most Carried 8 | 4 8 8 8 8 8 Average Carried 5 | 1 6 7 7 7 4 Final Capacity 8 | 8 8 8 8 8 5 Final Carried 8 | 4 8 8 8 7 3 Class Distribution -------------------- 45% | Mutant 40% | Scavenger-Sprinter 14% | Scavenger-Mutant Dominant Class ---------------- Mutant | -10/Materials Scavenger-Sprinter | -9/Materials Scavenger-Sprinter | -9/Mines Scavenger-Sprinter | -8/Materials Mutant | -7/Factory Resources | -11 -10 -9 -9 -8 -7 ----------- Run | Yrd Mat Mat Min Mat Fac Matter Collected 1135 | 188 212 190 41 . 504 Remotely . | . . . . . . Salvage Created 1248 | . 436 233 137 . 442 Parts 68 | . 19 22 3 . 24 Haulers Intercepted . | . . . . . . Recyclers Shooed . | . . . . . . Parts Field Recycled . | . . . . . . Retrieved Matter . | . . . . . . Parts Self-Destructed . | . . . . . . Prevented . | . . . . . . Parts Restored . | . . . . . . Kills | -11 -10 -9 -9 -8 -7 ------- Run | Yrd Mat Mat Min Mat Fac Combat Hostiles Destroyed 39 | . 11 12 5 . 11 Melee 11 | . 9 1 . . 1 Guns 9 | . . 9 . . . Cannons 12 | . . . 3 . 9 AOE 4 | . . 1 2 . 1 Classes Destroyed 7 | . 3 1 . . 3 Worker 1 | . . . . . 1 Recycler 6 | . 3 . . . 3 Watcher 1 | . . . . . 1 Swarmer 25 | . 6 11 3 . 5 Grunt 11 | . 5 . 2 . 4 Sentry 1 | . . 1 . . . Programmer 2 | . . . . . 2 Best Kill Streak 7 | . 7 7 3 . 4 Combat Bots Only 7 | . 7 7 3 . 3 Max Kills in Single Turn 2 | . 1 1 2 . 1 Gunslinging . | . . . . . . Exploded 2 | . . 1 2 . 1 Melee 1 | . 1 1 . . 1 Uniques/NPCs Destroyed . | . . . . . . Combat | -11 -10 -9 -9 -8 -7 -------- Run | Yrd Mat Mat Min Mat Fac Hostile Shots Fired 323 | . 46 65 12 29 171 Missed 100 | . 8 26 4 15 47 Hits 223 | . 38 39 8 14 124 Projectile 223 | . 38 39 8 14 124 Critical Strikes 7 | . . . . 2 5 Damage Taken 3019 | . 329 342 120 209 2019 Core 982 | . 83 76 67 46 710 Absorbed by Shields . | . . . . . . Ignored by Resistances 66 | . . . . . 66 Core Remaining (%) 80 | 100 66 . 64 91 . Volleys Fired 111 | . 1 22 11 4 73 Largest 2 | . 2 2 2 2 1 Hottest 80 | . 80 76 76 76 40 Shots Fired 129 | . 2 32 18 5 72 Gun 54 | . 2 30 11 4 7 Cannon 75 | . . 2 7 1 65 Launcher . | . . . . . . Special . | . . . . . . Kinetic 110 | . . 30 11 4 65 Thermal 8 | . 1 . . . 7 Explosive . | . . . . . . Electromagnetic 11 | . 1 2 7 1 . Robot Hit Streak 10 | . 1 5 10 1 9 Robot Miss Streak 7 | . 1 2 2 3 7 Penetration Max . | . . . . . . Secondary Targets 2 | . . 2 . . . Max Gunslinging Chain 1 | . . 1 . . . Shots Hit Robots 110 | . 26 24 12 1 47 Core Hits 55 | . 7 15 8 1 24 Critical Kills 2 | . 2 . . . . Critical Parts Destroyed 4 | . 4 . . . . Critical Strikes 6 | . 6 . . . . Smash 6 | . 6 . . . . Melee Attacks 44 | . 31 4 . . 9 Impact 35 | . 31 4 . . . Slashing 9 | . . . . . 9 Piercing . | . . . . . . Sneak Attacks 5 | . 4 . . . 1 Combat Hostiles . | . . . . . . Follow-up Attacks . | . . . . . . Damage Inflicted 2901 | . 841 304 268 20 1468 Guns 291 | . 15 149 40 20 67 Cannons 1372 | . . 37 132 . 1203 Explosions 129 | . . 33 96 . . Melee 1083 | . 826 85 . . 172 Ramming 26 | . . . . . 26 Kinetic 1412 | . . 149 40 20 1203 Thermal 196 | . . 33 96 . 67 Explosive . | . . . . . . Electromagnetic 184 | . 15 37 132 . . Impact 911 | . 826 85 . . . Slashing 172 | . . . . . 172 Piercing . | . . . . . . Highest Corruption 7 | . . . . . 7 Average Corruption 4 | . . . . . 4 Corruption Purged 5 | . . . . . 5 Corruption Blocked . | . . . . . . Effects 18 | . . . . . 18 Message Errors 4 | . . . . . 4 Matter Fused 2 | . . . . . 2 Heat Flow Errors 2 | . . . . . 2 Energy Discharges 5 | . . . . . 5 Parts Rejected 1 | . . . . . 1 Alerts 3 | . . . . . 3 Weapon Failures 1 | . . . . . 1 Overload Shots . | . . . . . . Overflow Damage 286 | . 260 16 . . 10 Projectiles 7 | . . . . . 7 Explosions . | . . . . . . Melee 279 | . 260 16 . . 3 Knockbacks 17 | . 3 1 . . 13 Impact 4 | . 3 1 . . . Kinetic 13 | . . . . . 13 Secondary . | . . . . . . Self-Inflicted Damage 49 | . . . 38 . 11 Shots 1 | . . . 1 . . Rammed 13 | . . . . . 13 Targets Rammed 13 | . . . . . 13 Kicked . | . . . . . . Crushed . | . . . . . . Highest Temperature 332 | . 18 83 133 36 332 Average Temperature 61 | . 12 15 56 14 82 Received Heat Transfer 720 | . 54 30 33 144 459 Effects 2 | . . . . . 2 Interference 1 | . . . . . 1 Short Circuit 1 | . . . . . 1 Siege Activations . | . . . . . . Martial Activations . | . . . . . . Shielding Activations . | . . . . . . Robots Disrupted . | . . . . . . Combat Hostiles . | . . . . . . Robots Corrupted 6 | . 5 1 . . . Combat Hostiles 3 | . 2 1 . . . Parts Fried 4 | . 4 . . . . Impact Corruptions 13 | . 12 1 . . . Robots Melted . | . . . . . . Combat Hostiles . | . . . . . . Parts Melted . | . . . . . . Heat Transferred 300 | . . 50 100 . 150 Parts Sabotaged . | . . . . . . Parts Stolen . | . . . . . . Parts Stripped . | . . . . . . Power Chain Reactions 2 | . . 1 1 . . Alert | -11 -10 -9 -9 -8 -7 ------- Run | Yrd Mat Mat Min Mat Fac Maximum Alert Level 1 | . . 1 . . . Low Security (%) 94 | 100 100 58 100 100 100 Level 1 5 | . . 41 . . . Level 2 . | . . . . . . Level 3 . | . . . . . . Level 4 . | . . . . . . Level 5 . | . . . . . . High Security . | . . . . . . Max Security . | . . . . . . Peak Influence 310 | . 165 310 194 80 156 Initial 120 | . . 52 120 65 9 Average 95 | . 80 183 159 52 74 Influence Increases 1373 | . 275 378 148 27 545 Destroy 0b10 Robot/C 800 | . 220 240 120 . 220 Destroy 0b10 Robot/NC 40 | . 15 . . . 25 Destroy Leader 152 | . 40 40 20 . 52 Allied During Kill 4 | . . . 4 . . Successful Hack 37 | . . 5 . 12 20 Disable Machine 45 | . . 15 . . 30 Destroy Structure 10 | . . 3 4 . 3 Partial Spotted 75 | . . 30 . 15 30 Lose Combat Pursuer 210 | . . 45 . . 165 Influence Decreases 1339 | . 150 193 290 173 533 Entered New Map 379 | . . 73 190 103 13 Time Decay 690 | . 150 90 90 40 320 Lost Part 270 | . . 30 10 30 200 Squads Dispatched 10 | . 2 1 . 2 5 Investigation . | . . . . . . Extermination 1 | . . . . . 1 Reinforcement 5 | . 2 1 . 2 . Assault . | . . . . . . Garrison 4 | . . . . . 4 Intercept . | . . . . . . Searches Triggered . | . . . . . . Construction Impeded . | . . . . . . Haulers Reinforced . | . . . . . . Active Scanning Responses . | . . . . . . Cargo Convoy Interrupts . | . . . . . . Stealth | -11 -10 -9 -9 -8 -7 --------- Run | Yrd Mat Mat Min Mat Fac Distress Signals 2 | . 1 . . . 1 Communications Jammed . | . . . . . . Distress Signals . | . . . . . . Times Spotted 81 | . 17 19 6 12 27 Peak Tracking Total 9 | . 6 5 3 9 4 Tactical Retreats 9 | . . 2 . . 7 Traps | -11 -10 -9 -9 -8 -7 ------- Run | Yrd Mat Mat Min Mat Fac Traps Triggered 3 | . . . . . 3 Indirectly . | . . . . . . Trap Hack Attempts . | . . . . . . Triggered . | . . . . . . Disarmed . | . . . . . . Reprogrammed . | . . . . . . Reused . | . . . . . . Traps Extracted . | . . . . . . Installed . | . . . . . . Triggered . | . . . . . . Machines | -11 -10 -9 -9 -8 -7 ---------- Run | Yrd Mat Mat Min Mat Fac Machines Disabled 3 | . . 1 . . 2 Max in Single Turn 1 | . . 1 . . 1 Machines Repaired . | . . . . . . Machines Dismantled . | . . . . . . Machines Sabotaged . | . . . . . . Overloaded Fab Kills . | . . . . . . Hacking | -11 -10 -9 -9 -8 -7 --------- Run | Yrd Mat Mat Min Mat Fac Machines Accessed 7 | . . 2 . 1 4 Terminals 2 | . . 1 . . 1 Fabricators 1 | . . . . . 1 Repair Stations 2 | . . 1 . . 1 Recycling Units . | . . . . . . Scanalyzers 2 | . . . . 1 1 Garrison Access . | . . . . . . Total Hacks 11 | . . 3 . 3 5 Successful 5 | . . 1 . 1 3 Failed 6 | . . 2 . 2 2 Catastrophic . | . . . . . . Database Lockouts . | . . . . . . Manual 1 | . . . . . 1 Terminals 2 | . . 1 . . 1 Fabricators 1 | . . . . . 1 Repair Stations 3 | . . 2 . . 1 Recycling Units . | . . . . . . Scanalyzers 5 | . . . . 3 2 Garrison Access . | . . . . . . Terminal Hacks 2 | . . 1 . . 1 Record 1 | . . . . . 1 Prototype ID Bank 1 | . . 1 . . . Fabricator Hacks 1 | . . . . . 1 Network Status 1 | . . . . . 1 Repair Station Hacks . | . . . . . . Recycling Unit Hacks . | . . . . . . Scanalyzer 2 | . . . . 1 1 Retrieve Study 2 | . . . . 1 1 Garrison Access Hacks . | . . . . . . Unauthorized Hacks . | . . . . . . Terminals . | . . . . . . Fabricators . | . . . . . . Repair Stations . | . . . . . . Recycling Units . | . . . . . . Scanalyzers . | . . . . . . Garrison Access . | . . . . . . Data Cores Recovered . | . . . . . . Used . | . . . . . . Hacking Detections 6 | . . 2 . 1 3 Full Trace Events . | . . . . . . Feedback Events . | . . . . . . Feedback Blocked . | . . . . . . Robot Schematics Acquired . | . . . . . . Robots Built . | . . . . . . Authchips . | . . . . . . Time . | . . . . . . Total Robot Build Rating . | . . . . . . Part Schematics Acquired . | . . . . . . Parts Built . | . . . . . . Authchips . | . . . . . . Time . | . . . . . . Total Part Build Rating . | . . . . . . Part Studies Acquired 2 | . . . . 1 1 Parts Repaired . | . . . . . . Time . | . . . . . . Parts Recycled . | . . . . . . Recycled Matter . | . . . . . . Retrieved Matter . | . . . . . . Retrieved Components . | . . . . . . Parts Scanalyzed . | . . . . . . Part Schematics Acquired . | . . . . . . Parts Damaged . | . . . . . . Bothacking | -11 -10 -9 -9 -8 -7 ------------ Run | Yrd Mat Mat Min Mat Fac Used RIF Installer . | . . . . . . Robots Hacked . | . . . . . . Non-combat . | . . . . . . Combat . | . . . . . . Robot Hacks Applied . | . . . . . . Relay Couplers Released . | . . . . . . Fabnet Peak Effective % . | . . . . . . Robots Rewired . | . . . . . . Allies Hacked . | . . . . . . Hacks Repelled . | . . . . . . Allies | -11 -10 -9 -9 -8 -7 -------- Run | Yrd Mat Mat Min Mat Fac Total Allies 1 | . . . 1 . . Largest Group 1 | . . . 1 . . Highest-Rated Group 31 | . . . 31 . . Highest-Rated Ally 31 | . . . 31 . . Total Orders . | . . . . . . Ally Attacks 4 | . . . 4 . . Total Damage 22 | . . . 22 . . Kills 1 | . . . 1 . . Allies Corrupted . | . . . . . . Allies Melted . | . . . . . . Intel | -11 -10 -9 -9 -8 -7 ------- Run | Yrd Mat Mat Min Mat Fac Active Infowar (turns) 400 | . . 7 187 77 129 Sensors 114 | . . . . . 114 Structural 286 | . . 7 187 77 15 Robot Analysis Total . | . . . . . . Derelict Logs Recovered 1 | . . . 1 . . Drone Launches . | . . . . . . Drone Recoveries . | . . . . . . Exploration | -11 -10 -9 -9 -8 -7 ------------- Run | Yrd Mat Mat Min Mat Fac Turns Passed 1627 | 59 368 198 190 89 723 Spaces Moved 2043 | 47 213 323 485 175 800 Core 24 | 4 . . . . 20 Treads . | . . . . . . Legs 297 | . 155 . . . 142 Wheels 217 | 43 47 . . . 127 Hover . | . . . . . . Flight 1505 | . 11 323 485 175 511 Fastest Speed 28 | 50 37 31 31 28 31 Average Speed 51 | 95 113 31 31 30 57 Slowest Speed 150 | 100 120 34 31 31 150 Overloaded Moves . | . . . . . . Propulsion Burnouts . | . . . . . . Robots Hopped 4 | . . 1 . 2 1 Potential Cave-ins . | . . . . . . Cave-ins Triggered . | . . . . . . Exploration Rate (%) 32 | 3 34 29 92 17 19 Regions Visited 5 Branch Regions 1 Pre-discovered Areas . | . . . . . . Known Exits Taken 1 | . . . . 1 . Unknown Exits Taken 4 | 1 1 1 1 . . Scrap Searched 3 | . . . 3 . . Spaces Dug . | . . . . . . Terrain Destroyed 9 | . . 3 4 . 2 Melee . | . . . . . . Projectile 2 | . . . . . 2 AOE 7 | . . 3 4 . . Terrain Rammed . | . . . . . . Walls Destroyed . | . . . . . . Machines Disabled . | . . . . . . Actions | -11 -10 -9 -9 -8 -7 --------- Run | Yrd Mat Mat Min Mat Fac Total 2417 | 58 291 386 507 206 969 Wait 65 | . 5 11 6 11 32 Move 2030 | 46 212 320 484 170 798 Hop 4 | . . 1 . 2 1 Pick Up 27 | 4 12 2 1 3 5 Fast Attach 36 | 6 1 6 2 3 18 Attach 25 | 1 9 4 . 5 6 Detach 15 | 1 6 . . 3 5 Swap 13 | . 3 7 1 . 2 Drop 34 | . 11 9 2 5 7 Fire 111 | . 1 22 11 4 73 Melee 44 | . 31 4 . . 9 Ram 13 | . . . . . 13 Kick . | . . . . . . Crush . | . . . . . . Escape Stasis . | . . . . . . Rewire . | . . . . . . Trap . | . . . . . . Miscellaneous . | . . . . . . Route ------- -11/Scrapyard -10/Materials -9/Materials -9/Mines -8/Materials (discovered 2 exits: *Fac x2) -7/Factory History --------- Turn | Location | Event 5 | -11/Scrapyard | Discovered new exit (range 16) 60 | -11/Scrapyard | Entered Materials 305 | -10/Materials | Destroyed 7 combat bots 310 | -10/Materials | Build established: Mutant 410 | -10/Materials | Discovered new exit (range 15) 428 | -10/Materials | Entered another Materials area 428 | -9/Materials | Evolved 2 slots: Propulsion x2 527 | -9/Materials | Destroyed 7 combat bots 608 | -9/Materials | Discovered new exit (range 13) 626 | -9/Materials | Entered Mines 643 | -9/Mines | Escorted by a lone wolf Derelict 662 | -9/Mines | Found a hidden stash of uninstalled traps 689 | -9/Mines | Received a Rocket Launcher from a helpful Derelict 735 | -9/Mines | Found a damaged Exp. Sensor Array with a note attached 736 | -9/Mines | Found Prototype Device 736 | -9/Mines | Identified Exp. Sensor Array 793 | -9/Mines | Learned location of 1 exit from Materials 800 | -9/Mines | Discovered new exit (range 8) 801 | -9/Mines | Build established: Scavenger-Sprinter 816 | -9/Mines | Entered Materials 816 | -8/Materials | Evolved 2 slots: Propulsion x1, Utility x1 817 | -8/Materials | Identified exit to Factory 901 | -8/Materials | Discovered exit to Factory (range 14) 905 | -8/Materials | Entered Factory 905 | -7/Factory | Evolved 2 slots: Power x1, Propulsion x1 915 | -7/Factory | Lost 3 parts (1p2w) 1099 | -7/Factory | Lost 3 parts (2n1u) 1219 | -7/Factory | Lost 6 parts (1p3n1u1w) 1311 | -7/Factory | Garrison activated, responded to threat 1559 | -7/Factory | Core integrity fell below 50% 1607 | -7/Factory | Core integrity fell below 20% 1611 | -7/Factory | Garrison activated, responded to threat 1628 | -7/Factory | Destroyed by G-47 Trooper with Particle Gun Last Messages --------------- 01601_ K-01 Serf collects debris. 01602_ Acquired Sml. Laser. 01605_ K-01 Serf collects debris. 01611_ G-47 Trooper calls for garrison reinforcements. 01611_ ALERT: Activating Garrison Access F002. 01612_ M-28 Smith repairs S-27 Virus. 01614_ K-01 Serf collects debris. 01617_ Sml. Laser destroyed. 01618_ Critical hit (Burn: +37). 01618_ K-01 Serf collects debris. 01620_ S-27 Virus destroyed. 01620_ R-06 Scavenger collects Com. Wheel. 01624_ Critical hit (Burn: +37). 01624_ R-06 Scavenger collects Sml. Storage Unit. 01626_ Faulty Cld. VTOL Module destroyed. 01626_ K-01 Serf collects debris. 01626_ Acquired Lgt. Nuclear Core. 01627_ M-28 Smith repairs G-47 Trooper. Map ----- +----------------------------------------------------+ | ?????????????????????????????????????????????????? | | ?????????????????????????????????????????????????? | | ?????????????????????????????????????????????????? | | ???????????????????????????????????????#?????????? | | ??????????????????????????????????????? ?????????? | | ??????????????????????????????????????? ????????? | | ??????????????????????????????????????? ????????? | | ??????????????????????????? ? ???????" "???????? | | ??????????????????????????" " ????"""" """"????? | | ??????????????????????? " " " ????"""" """"????# | | ?????????????????????? " " " ?????""" """?????# | | ?????????????????????? """#? ?????# | | ??????????????????????? Y"# ? ??????# | | ???????????????????????? """# ?? ! ??????# | | ????????????????????????? /???? ???????# | | ?????????????????????????? #???? ???????# | | ??????????????????########## ######+####????# | | ??????????????????# # # #????# | | ??????????????????# """ # # """ """ #????# | | ??????????????????# ""R" # # """ """ ###### | | ??????????????????# "" "% # # """ """ + | | ??????????????????# % m/ / "" "" ###### | | ??????????????????# """ g# # "" "" #????# | | ??????????????????# """ mg# # #????# | | ??????????????????# """ k%r# # ! #????# | | ??????????????????# !@ # "###########????# | | ????????????????#########/## "%#??????????????# | | ??????????# # "#??????????????# | | ??????????# + #??????????????# | | ??????????# # #??????????????# | | ??????????# # #??????????????# | | ??????????# # #??????????????# | | ??????????? # ?????????????? | | ??????????? # ????????????? | | ??????????? # ??????????? | | ???????????? # ??????????? | | ????????????################ ????????? | | ???????????????????????????####+###?????????###### | | ?????????????????????????????????????????????????? | | ?????????????????????????????????????????????????? | | ?????????????????????????????????????????????????? | | ?????????????????????????????????????????????????? | | ?????????????????????????????????????????????????? | | ?????????????????????????????????????????????????? | | ?????????????????????????????????????????????????? | | ?????????????????????????????????????????????????? | | ?????????????????????????????????????????????????? | | ?????????????????????????????????????????????????? | | ?????????????????????????????????????????????????? | | ?????????????????????????????????????????????????? | +----------------------------------------------------+ Best States ------------- Heat Dissipation 34 Energy Generation 26 Energy Capacity 335 Matter Stores 300 Matter Capacity 300 Sight Range 16 Robot Scan Range 15 Terrain Scan Density 10 Additional Mass Support 9 Armor Coverage 150 Resistance: EM 15 Evasion (%) 64 Core Analysis 6 Item Schematics ----------------- None Robot Schematics ------------------ None Fabricated ------------ Nothing Repaired ---------- Nothing Studied --------- Deuterium Engine | -8/Materials | Hacked Flight Unit | -7/Factory | Hacked Alien Tech Used ----------------- None Achievements -------------- Ew, Corruption Ghost 'Em Item+ Challenges ------------ None Game ------ Seed RestorationStorageWeb Manual? 0 Play Time 00:28:26 Cumulative 13.9 hours Start 2025.10.26 @ 01:50:54 End 2025.10.26 @ 02:18:28 Sessions 1 Manual Loads 0 Difficulty Rogue Special Mode None Game No. 36 Rogue 36 Adventurer 0 Explorer 0 Win Type - Total 0 Types 0/0/0/0/0/0/0/0/0/0 Lore% 6 Gallery% 17 Achievement% 15 Wizard Run 0 Options --------- Layout 1 ASCII 1 Keyboard 1 Movement Numpad Keybinds 0 Fullscreen 1 Font 24/Smallcaps Map View 50x35 Zoom Use 0% Tactical HUD 1 Map Filters NONE Filters NONE Steam 1 RUN: 08d62041-f0fd-4935-a620-0dc23d8df02e